bitfinex-derivatives/quotes_ETHF0:USTF0_20240829
["timestamp","ask_amount","ask_price","bid_price","bid_amount"]
[1724898264405,1.82579,2525.9,2525.5,3.5827]
[1724898264406,0.39584,2525.6,2525.5,3.2078]
[1724898264709,0.39584,2525.6,2525.2,0.743]
[1724898264925,0.39589,2525.3,2525.2,0.743]
[1724898265103,0.3959,2525.2,2525.1,3.3253551]
[1724898265307,1.8259,2525.2,2525.1,3.3253551]
[1724898265707,1.43,2525.2,2525.1,3.3253551]
[1724898266008,0.3959,2525.3,2525.1,3.3253551]
[1724898266216,1.43,2525.4,2525.2,0.3959]
[1724898266414,1.43,2525.4,2525.3,0.3688]
[1724898266615,1.43,2525.4,2525.3,0.743]
[1724898266914,1.82586,2525.5,2525.3,0.743]
[1724898267907,0.39587,2525.4,2525.3,0.743]
[1724898268516,1.82587,2525.4,2525.3,0.743]
[1724898269603,1.43,2525.4,2525.3,0.743]
[1724898270915,1.82587,2525.5,2525.3,0.743]
[1724898271312,1.82587,2525.5,2525.3,1.13889]
[1724898271514,1.82584,2525.7,2525.4,0.76117]
[1724898271716,1.82584,2525.7,2525.5,0.39585]
[1724898272014,1.82583,2525.7,2525.5,0.39584]
[1724898273216,1.82583,2525.7,2525.4,0.76117]
[1724898274107,1.82586,2525.5,2525.3,3.9508]
[1724898274518,1.82586,2525.5,2525.3,3.582]
[1724898274717,1.82586,2525.5,2525.3,0.3742]
[1724898276214,1.43,2525.5,2525.3,0.77009]
[1724898278714,1.82586,2525.5,2525.3,0.77009]
[1724898281928,1.82586,2525.5,2525.3,0.3742]
[1724898282618,1.82586,2525.5,2525.3,0.77009]
[1724898283926,1.82586,2525.5,2525.3,0.3742]
[1724898284428,0.39587,2525.4,2525.3,0.3742]
[1724898284820,1.82587,2525.5,2525.3,0.3742]
[1724898285932,1.82587,2525.5,2525.3,0.77009]
[1724898286130,1.43,2525.5,2525.3,0.77009]
[1724898286431,1.82586,2525.5,2525.3,0.77009]
[1724898287438,1.82586,2525.5,2525.3,0.3742]
[1724898288031,1.82586,2525.5,2525.3,0.77008]
[1724898288825,0.39587,2525.4,2525.3,0.3742]
[1724898290523,1.82587,2525.5,2525.3,0.3742]
[1724898292237,1.82587,2525.5,2525.3,0.77009]
[1724898292832,1.82587,2525.5,2525.3,0.3742]
[1724898293036,0.39587,2525.4,2525.3,0.3742]
[1724898293933,1.82587,2525.5,2525.3,0.3742]
[1724898295049,0.39589,2525.3,2525.2,0.7598]
[1724898295334,1.43,2525.5,2525.1,3.3253551]
[1724898295335,1.38567,2525.2,2525.1,3.3253551]
[1724898295537,3.20377,2525.2,2525.1,3.3253551]
[1724898297335,0.39595,2525.0,2524.8,0.00593954]
[1724898297529,1.43,2525.0,2524.8,0.00593954]
[1724898297741,4.73455,2524.9,2524.8,0.00593954]
[1724898297932,1.82594,2525.0,2524.8,0.37143954]
[1724898298239,1.82594,2525.0,2524.8,0.73233954]
[1724898298436,1.43,2525.0,2524.8,0.73233954]
[1724898298644,1.43,2525.1,2524.9,0.39595]
[1724898300039,1.43,2525.0,2524.8,0.00593954]
[1724898300239,0.39595,2524.9,2524.8,0.00593954]
[1724898301544,4.35675,2524.9,2524.8,0.00593954]
[1724898301939,0.39595,2524.9,2524.8,0.00593954]
[1724898309048,4.35675,2524.9,2524.8,0.00593954]
[1724898309248,3.9608,2524.9,2524.1,3.2078]
[1724898309561,1.82604,2524.4,2524.3,0.7365]
[1724898310157,1.82604,2524.4,2524.3,4.6981]
[1724898310354,0.39602,2524.5,2524.3,0.7365]
[1724898310558,1.43593954,2524.6,2524.3,0.7365]
[1724898310759,1.43593954,2524.6,2524.4,0.39602]
[1724898310760,0.00593954,2524.6,2524.4,0.39602]
[1724898310956,0.00593954,2524.6,2524.5,0.39601]
[1724898311754,0.00593954,2524.6,2524.5,3.60381]
[1724898311951,0.00593954,2524.6,2524.5,7.56461]
[1724898312156,0.00593954,2524.6,2524.5,8.99461]
[1724898312560,0.00593954,2524.6,2524.5,3.60381]
[1724898312762,0.00593954,2524.6,2524.5,44.0078]
[1724898312962,0.00593954,2524.6,2524.5,40.8]
[1724898313364,0.40193954,2524.6,2524.5,40.8]
[1724898314260,0.40193954,2524.6,2524.3,0.7365]
[1724898314261,0.39603,2524.4,2524.3,0.7365]
[1724898318675,1.82602,2524.5,2524.3,0.7365]
[1724898318876,0.39603,2524.4,2524.3,0.7365]
[1724898322181,1.82602,2524.5,2524.3,0.7365]
[1724898322585,0.39603,2524.4,2524.3,0.7365]
[1724898326385,5.78763,2524.4,2524.3,0.3534]
[1724898327291,0.39605,2524.3,2524.2,0.3691]
[1724898327481,0.40193954,2524.6,2524.2,0.3691]
[1724898327682,0.40193954,2524.6,2524.3,0.39605]
[1724898327885,0.40193954,2524.6,2524.4,0.75593]
[1724898328085,0.00593954,2524.6,2524.4,0.75593]
[1724898328688,0.00593954,2524.6,2524.5,3.98811]
[1724898330792,0.00593954,2524.6,2524.5,0.78031]
[1724898332678,0.00593954,2524.6,2524.5,4.74111]
[1724898333085,0.00593954,2524.6,2524.5,0.3843]
[1724898333288,1.83193954,2524.6,2524.5,0.3843]
[1724898333693,0.39601,2524.5,2524.4,0.3599]
[1724898333896,1.83194954,2524.6,2524.4,0.3599]
[1724898334292,1.83194954,2524.6,2524.4,0.75593]
[1724898334984,1.83194954,2524.6,2524.4,0.3599]
[1724898341696,1.43593954,2524.6,2524.4,0.75593]
[1724898342095,0.00593954,2524.6,2524.5,3.60381]
[1724898342599,0.00593954,2524.6,2524.5,48.36461]
[1724898345902,0.39591,2525.2,2524.5,56.38864]
[1724898346089,1.43,2525.3,2524.9,3.2078]
[1724898346294,1.43,2525.6,2525.4,0.39587]
[1724898346503,1.82584,2525.6,2525.5,0.7645]
[1724898346717,1.8440745,2525.6,2525.5,1.1227]
[1724898347003,1.8440736,2525.6,2525.5,1.1227]
[1724898347806,1.4482336,2525.6,2525.5,1.51856]
[1724898348096,1.43,2525.6,2525.5,1.51856]
[1724898348496,1.43,2525.7,2525.5,8.68555]
[1724898348697,1.43,2525.6,2525.5,4.72635]
[1724898351405,1.43,2525.6,2525.5,4.3305]
[1724898352102,1.43,2525.6,2525.5,4.72636]
[1724898352402,1.43,2525.7,2525.5,4.72635]
[1724898353407,1.43,2525.7,2525.6,0.39584]
[1724898353794,1.82583,2525.7,2525.5,4.3305]
[1724898353999,1.43,2525.6,2525.5,4.3305]
[1724898354207,1.43,2525.6,2525.5,4.72636]
[1724898363018,1.43,2525.6,2525.5,1.51856]
[1724898370920,1.82584,2525.6,2525.5,1.1227]
[1724898371228,1.44822757,2525.6,2525.5,1.51856]
[1724898371822,1.44822772,2525.6,2525.5,4.72636]
[1724898372328,1.43,2525.6,2525.5,4.72636]
[1724898373230,1.43,2525.6,2525.5,8.68556]
[1724898373629,0.00593954,2525.8,2525.7,0.39583]
[1724898373834,0.40174954,2525.8,2525.5,4.3305]
[1724898374033,0.40174954,2525.8,2525.6,0.39583]
[1724898374529,0.40174954,2525.8,2525.7,0.39583]
[1724898375328,0.40174954,2525.8,2525.6,0.39583]
[1724898375535,0.00593954,2525.8,2525.7,0.39583]
[1724898376731,0.381,2526.6,2526.2,0.39574]
[1724898376931,0.01820975,2526.5,2526.3,1.0857]
[1724898377136,0.37790975,2526.5,2526.3,41.8857]
[1724898377335,0.726,2526.5,2526.3,41.8857]
[1724898378027,0.00593954,2526.7,2526.4,3.9584]
[1724898378233,0.00593954,2526.7,2526.6,3.60348]
[1724898381338,0.00593954,2526.7,2526.6,7.56108]
[1724898381537,4.6378,2527.4,2527.0,0.39561]
[1724898381744,4.6378,2527.4,2527.0,3.60341]
[1724898383041,3.2078,2527.4,2527.0,3.2078]
[1724898383236,0.00593954,2527.5,2527.3,3.2078]
[1724898383430,0.00593954,2527.5,2527.4,1.11836]
[1724898383639,0.00593954,2527.5,2527.4,2.90536]
[1724898383836,0.00593954,2527.5,2527.4,6.86216]
[1724898384031,4.97534715,2528.0,2527.4,6.86216]
[1724898384032,6.40534715,2528.0,2527.7,0.3955]
[1724898384233,6.40534715,2528.0,2527.9,3.2078]
[1724898384442,1.43,2528.2,2527.9,3.60328]
[1724898384640,1.43,2528.2,2528.0,0.3623]
[1724898384937,1.43,2528.6,2528.0,5.7483]
[1724898385140,0.39,2529.0,2528.3,3.2078]
[1724898385335,0.39534,2528.8,2528.6,3.2078]
[1724898385535,0.2023777,2528.7,2528.4,0.00593954]
[1724898385837,0.56795674,2529.1,2528.4,0.00593954]
[1724898385838,1.82539,2528.5,2528.4,0.00593954]
[1724898386137,3.81539,2528.5,2528.4,0.00593954]
[1724898386333,3.42,2528.5,2528.4,0.00593954]
[1724898386537,7.3752,2528.5,2528.4,0.00593954]
[1724898387131,3.42,2528.5,2528.4,0.00593954]
[1724898387332,7.3752,2528.5,2528.4,0.00593954]
[1724898388047,7.77059,2528.5,2528.4,0.00593954]
[1724898388239,7.3752,2528.5,2528.4,0.00593954]
[1724898389231,3.42,2528.5,2528.4,0.00593954]
[1724898389543,0.39,2528.6,2528.4,0.00593954]
[1724898389744,3.42,2528.7,2528.4,0.00593954]
[1724898389940,0.79376632,2528.8,2528.4,0.00593954]
[1724898391348,3.81536,2528.7,2528.4,0.00593954]
[1724898392538,3.42,2528.7,2528.4,0.00593954]
[1724898394243,7.22758798,2528.9,2528.4,0.40133954]
[1724898394441,7.22758798,2528.9,2528.5,0.39539]
[1724898394442,7.02313,2528.9,2528.5,0.39539]
[1724898394637,7.02313,2528.9,2528.4,0.40132954]
[1724898394940,7.02313,2528.9,2528.5,0.74889]
[1724898395135,0.39534,2528.8,2528.5,0.3535]
[1724898396445,0.39538,2528.6,2528.4,0.00593954]
[1724898396646,0.3602,2528.5,2528.4,0.00593954]
[1724898396953,4.17559,2528.5,2528.4,0.00593954]
[1724898397152,8.13079,2528.5,2528.4,0.00593954]
[1724898397347,8.87039,2528.5,2528.4,0.00593954]
[1724898400051,9.07436065,2528.5,2528.4,0.00593954]
[1724898400443,8.87039,2528.5,2528.4,0.00593954]
[1724898400642,1.49519,2528.5,2528.4,0.00593954]
[1724898400845,0.39538,2528.6,2528.4,0.00593954]
[1724898401152,0.75944739,2528.8,2528.4,0.00593954]
[1724898401346,3.42,2528.7,2528.4,0.00593954]
[1724898401547,0.39539,2528.6,2528.4,0.00593954]
[1724898402149,0.39539,2528.5,2528.4,0.00593954]
[1724898402645,0.39538,2528.6,2528.4,0.00593954]
[1724898403048,0.39539,2528.5,2528.4,0.00593954]
[1724898407056,3.42,2528.7,2528.4,0.00593954]
[1724898407649,0.39539,2528.5,2528.4,0.00593954]
[1724898408747,4.35059,2528.5,2528.4,0.00593954]
[1724898411055,0.39545,2528.1,2528.0,0.3777]
[1724898411652,3.2078,2528.6,2528.0,3.98096]
[1724898411852,0.39543,2528.3,2528.0,3.98096]
[1724898412556,0.39544,2528.2,2528.0,0.3777]
[1724898413658,0.39545,2528.1,2528.0,0.3777]
[1724898413855,0.39547,2528.0,2527.9,0.00593954]
[1724898416455,7.77147,2528.0,2527.9,0.00593954]
[1724898416855,8.76014,2528.0,2527.9,0.00593954]
[1724898417054,15.14074,2528.0,2527.9,0.00593954]
[1724898418063,15.34095284,2528.0,2527.9,0.00593954]
[1724898419160,0.39556,2527.4,2527.3,41.8778]
[1724898419873,0.3956,2527.2,2526.9,6.9287751]
[1724898420064,0.39561,2527.1,2527.0,0.7517]
[1724898420360,3.42,2527.3,2527.0,0.3737]
[1724898420552,0.3956,2527.2,2527.0,0.3737]
[1724898421862,0.39559,2527.3,2527.0,0.3737]
[1724898422060,3.42,2527.4,2527.0,0.3737]
[1724898422363,0.39561,2527.1,2527.0,0.3737]
[1724898423073,0.39564,2526.9,2526.8,0.00593954]
[1724898423363,4.80474,2526.9,2526.8,0.00593954]
[1724898423562,0.39572,2526.4,2526.3,0.7588]
[1724898423769,3.81572,2526.4,2526.3,0.7588]
[1724898424767,0.39575,2526.2,2526.1,0.00593954]
[1724898424963,3.81575,2526.2,2526.1,0.00593954]
[1724898425259,0.39575,2526.2,2526.1,0.00593954]
[1724898426560,4.35415,2526.2,2526.1,0.00593954]
[1724898429270,0.39575,2526.2,2526.1,0.00593954]
[1724898431266,7.77415,2526.2,2526.1,0.00593954]
[1724898433573,3.81575,2526.2,2526.1,0.00593954]
[1724898437077,0.39575,2526.2,2526.1,0.00593954]
[1724898437268,3.2078,2526.4,2526.1,0.00593954]
[1724898437483,0.39574,2526.3,2526.1,3.21373954]
[1724898437664,3.81571,2526.5,2526.2,0.3794]
[1724898437869,0.39572,2526.4,2526.3,0.362]
[1724898438070,0.39573,2526.3,2526.2,0.3794]
[1724898438274,0.39573,2526.3,2526.2,41.5674]
[1724898438478,0.39572,2526.4,2526.2,41.5674]
[1724898439675,0.39573,2526.3,2526.2,41.5674]
[1724898439882,3.81573,2526.3,2526.2,0.7674]
[1724898441573,0.39572,2526.4,2526.2,0.7674]
[1724898442380,3.81571,2526.5,2526.2,1.16315]
[1724898442771,3.81571,2526.5,2526.2,0.7674]
[1724898443579,3.81571,2526.5,2526.2,1.16315]
[1724898443882,6.84262243,2526.7,2526.2,0.7674]
[1724898444087,7.23830243,2526.7,2526.3,0.39573]
[1724898444288,7.23830243,2526.7,2526.2,0.7674]
[1724898444488,6.84262243,2526.7,2526.3,0.39573]
[1724898444680,3.81571,2526.5,2526.2,1.16314]
[1724898446699,3.42,2526.5,2526.3,0.39572]
[1724898446900,3.42,2526.5,2526.4,0.39572]
[1724898451396,3.81568,2526.7,2526.5,0.39569]
[1724898451591,3.81568,2526.7,2526.6,0.7203]
[1724898451592,3.81567,2526.7,2526.6,0.7203]
[1724898451797,3.81567,2526.7,2526.6,0.3595]
[1724898455809,0.39572,2526.4,2526.3,3.2078]
[1724898456005,3.81572,2526.4,2526.3,3.2078]
[1724898460801,7.77412,2526.4,2526.2,0.388]
[1724898461000,3.81572,2526.4,2526.2,0.388]
[1724898463198,0.39573,2526.3,2526.2,0.388]
[1724898466197,0.39573,2526.3,2526.1,3.21373954]
[1724898466397,0.39575,2526.2,2526.1,3.57443954]
[1724898466605,0.39574,2526.3,2526.1,3.57443954]
[1724898467613,0.39575,2526.2,2526.1,3.57443954]
[1724898468610,0.39575,2526.2,2526.1,0.36663954]
[1724898468819,0.39575,2526.2,2526.1,3.57443954]
[1724898470000,1.82575,2526.2,2526.1,3.57443954]
[1724898471108,1.82575,2526.2,2526.1,0.36663954]
[1724898471307,1.82575,2526.2,2526.1,3.57443954]
[1724898473604,1.82575,2526.2,2526.1,0.00593954]
[1724898473906,2.81513,2526.2,2526.1,0.00593954]
[1724898474912,12.77353,2526.2,2526.1,0.00593954]
[1724898475105,12.77353,2526.2,2525.7,3.2078]
[1724898475106,1.38534,2525.8,2525.7,3.2078]
[1724898475302,0.39584,2525.6,2525.5,0.7213]
[1724898475614,1.82584,2525.6,2525.5,0.7213]
[1724898476511,1.43,2525.6,2525.5,0.7213]
[1724898476908,4.64373954,2525.8,2525.5,4.6805]
[1724898477106,1.43,2525.6,2525.5,0.7213]
[1724898477306,1.43,2525.6,2525.5,1.1033]
[1724898478011,0.39583,2525.7,2525.5,1.1033]
[1724898479521,0.39584,2525.6,2525.5,0.7213]
[1724898479711,3.81584,2525.6,2525.5,0.3553]
[1724898479911,0.39587,2525.4,2525.3,0.00593954]
[1724898481815,0.39587,2525.5,2525.3,0.00593954]
[1724898483316,0.39587,2525.4,2525.3,0.00593954]
[1724898483610,3.81587,2525.4,2525.3,0.00593954]
[1724898485005,7.77587,2525.4,2525.3,0.00593954]
[1724898485212,3.42,2525.4,2525.3,0.00593954]
[1724898486311,3.81587,2525.4,2525.3,0.00593954]
[1724898487803,3.81587,2525.4,2524.6,3.2078]
[1724898487804,0.98973,2525.3,2524.6,3.2078]
[1724898488005,0.39598,2524.8,2524.6,1.125]
[1724898488305,4.21579978,2525.2,2524.6,0.7712]
[1724898488306,3.81598,2524.7,2524.6,0.7712]
[1724898488509,3.81598,2524.7,2524.6,0.3851]
[1724898490817,0.396,2524.6,2524.4,0.00593954]
[1724898491016,0.396,2524.6,2524.4,0.37773954]
[1724898492219,3.81601,2524.5,2524.4,0.37773954]
[1724898492612,3.81599,2524.7,2524.4,0.37773954]
[1724898493622,3.42,2524.7,2524.4,0.77375954]
[1724898493804,3.81599,2524.7,2524.4,0.37773954]
[1724898494621,0.396,2524.6,2524.4,0.37773954]
[1724898494816,0.39601,2524.5,2524.4,0.37773954]
[1724898495122,3.81601,2524.5,2524.4,0.37773954]
[1724898495319,3.81601,2524.5,2524.4,0.00593954]
[1724898496414,8.76765,2524.5,2524.4,0.00593954]
[1724898496614,7.77761,2524.5,2524.4,0.00593954]
[1724898498319,3.81601,2524.5,2524.4,0.00593954]
[1724898500319,0.39608,2524.1,2524.0,0.3624]
[1724898500621,0.39609,2524.0,2523.9,0.3643]
[1724898501634,3.9624,2524.0,2523.7,0.37065966]
[1724898501823,3.42,2523.8,2523.7,0.73495966]
[1724898502328,3.42,2523.8,2523.7,4.69735966]
[1724898502530,3.42,2524.0,2523.7,4.69735966]
[1724898502731,3.42,2524.0,2523.7,0.73495966]
[1724898502924,3.82200954,2524.2,2523.8,3.60392]
[1724898503225,0.39609,2524.1,2523.8,3.2078]
[1724898503424,0.39609,2524.1,2523.7,1.13108966]
[1724898503628,3.42,2524.0,2523.7,1.13108966]
[1724898503928,3.42,2524.0,2523.9,0.39611]
[1724898504124,3.82200954,2524.2,2523.9,4.35851]
[1724898504326,3.82200954,2524.2,2523.9,0.39611]
[1724898504625,0.39608,2524.1,2523.8,3.60391]
[1724898505329,3.82199954,2524.2,2523.9,0.3961]
[1724898505527,3.42593954,2524.2,2524.0,0.39609]
[1724898505730,3.42593954,2524.2,2524.1,0.76638]
[1724898505928,0.00593954,2524.2,2524.1,0.76638]
[1724898506230,3.42593954,2524.2,2524.1,0.3703]
[1724898506529,3.42593954,2524.2,2524.1,0.76638]
[1724898506729,3.42593954,2524.2,2524.1,4.72798]
[1724898508323,0.00593954,2524.2,2524.1,10.72798]
[1724898508920,0.00593954,2524.2,2524.1,51.52798]
[1724898509517,0.00593954,2524.2,2524.1,54.73578]
[1724898509730,0.00593954,2524.2,2524.1,48.73578]
[1724898513035,0.00593954,2524.2,2524.1,45.52798]
[1724898513227,0.00593954,2524.2,2524.1,48.73578]
[1724898513426,0.39595,2525.0,2524.7,0.39598]
[1724898513637,3.81595,2525.0,2524.8,1.1171]
[1724898513832,0.39595,2524.9,2524.8,1.1171]
[1724898514425,0.39599,2524.7,2524.5,3.2078]
[1724898514632,3.42,2524.6,2524.5,3.2078]
[1724898515027,3.42,2524.6,2524.5,7.1686]
[1724898515831,3.42,2524.6,2524.5,7.56461]
[1724898516721,0.39598,2524.8,2524.5,7.56461]
[1724898516923,0.39598,2524.8,2524.6,0.396]
[1724898516924,3.81598,2524.8,2524.6,0.396]
[1724898517925,3.42,2524.8,2524.7,0.39598]
[1724898518126,3.42593954,2525.1,2524.9,0.39594]
[1724898518425,3.82185954,2525.1,2525.0,1.1234]
[1724898519129,3.42593954,2525.1,2525.0,1.1234]
[1724898519330,3.42593954,2525.1,2525.0,1.51934]
[1724898520330,3.42593954,2525.1,2525.0,1.1234]
[1724898520531,3.42593954,2525.1,2525.0,1.51934]
[1724898522034,3.42593954,2525.1,2525.0,5.47934]
[1724898523030,0.00593954,2525.1,2525.0,11.47934]
[1724898523227,3.60364,2525.6,2525.0,11.47934]
[1724898523427,3.60364,2525.6,2525.4,0.39587]
[1724898523428,3.42,2525.5,2525.4,0.39587]
[1724898524026,3.42,2525.5,2525.3,0.39588]
[1724898525031,3.42,2525.5,2525.4,0.39587]
[1724898525941,3.42,2525.5,2525.4,4.35587]
[1724898526843,3.42,2525.5,2525.4,7.56367]
[1724898529339,3.42,2525.5,2525.4,0.39587]
[1724898531338,3.42,2525.5,2525.3,0.39588]
[1724898531938,3.42,2525.5,2525.2,41.1959]
[1724898532131,3.42,2525.5,2525.2,40.8]
[1724898533034,3.42,2525.5,2525.3,0.39588]
[1724898533444,3.42,2525.5,2525.4,0.39587]
[1724898534139,3.42,2525.5,2525.3,0.39588]
[1724898538749,3.42,2525.5,2525.4,0.39587]
[1724898538941,3.42,2525.5,2525.3,0.39588]
[1724898539952,1.43,2525.4,2525.3,0.39588]
[1724898541152,1.43,2525.4,2525.2,41.19589]
[1724898541849,1.43,2525.4,2525.1,3.21373954]
[1724898542152,1.43,2525.2,2525.1,3.21373954]
[1724898542341,1.43,2525.2,2525.1,44.40965954]
[1724898542537,1.43,2525.2,2525.1,44.01373954]
[1724898543543,1.43,2525.2,2525.1,40.80593954]
[1724898543841,1.43,2525.2,2525.1,41.20185954]
[1724898548248,1.43,2525.2,2525.1,40.80593954]
[1724898548249,1.8259,2525.2,2525.1,40.80593954]
[1724898548451,1.43,2525.2,2525.1,0.00593954]
[1724898548742,3.60368,2525.4,2525.1,0.00593954]
[1724898548948,1.43,2525.2,2525.1,0.00593954]
[1724898549144,1.43,2525.2,2525.1,0.40185954]
[1724898549455,0.36723954,2525.7,2525.4,0.39587]
[1724898549456,1.43,2525.5,2525.4,0.39587]
[1724898550361,1.43,2525.5,2525.4,0.76487]
[1724898551362,1.43,2525.5,2525.4,4.72487]
[1724898551564,0.00593954,2525.7,2525.6,0.39584]
[1724898551853,1.43593954,2525.7,2525.6,0.39584]
[1724898552446,0.00593954,2525.7,2525.6,0.39584]
[1724898554472,0.00593954,2525.7,2525.6,4.35504]
[1724898554673,0.00593954,2525.7,2525.6,7.56284]
[1724898557666,0.00593954,2525.7,2525.6,4.35504]
[1724898557870,0.00593954,2525.7,2525.6,7.56284]
[1724898559667,0.00593954,2525.7,2525.6,4.35504]
[1724898559865,0.00593954,2525.7,2525.6,7.56284]
[1724898560663,0.00593954,2525.7,2525.6,3.60364]
[1724898564667,0.00593954,2525.7,2525.6,0.39584]
[1724898564977,0.00593954,2525.7,2525.6,3.60364]
[1724898565473,0.00593954,2525.7,2525.6,0.39584]
[1724898567076,0.00593954,2525.7,2525.5,0.75905]
[1724898567276,0.00593954,2525.7,2525.6,0.39584]
[1724898568277,0.00593954,2525.7,2525.5,0.75905]
[1724898568474,1.82585,2525.6,2525.4,3.5768]
[1724898571075,1.82585,2525.6,2525.4,0.369]
[1724898572782,2.18665,2525.6,2525.4,0.369]
[1724898575277,0.39586,2525.5,2525.3,3.5966]
[1724898575481,1.43,2525.4,2525.3,3.2078]
[1724898576971,1.82587,2525.4,2525.3,3.2078]
[1724898578684,1.82587,2525.4,2525.2,3.3253551]
[1724898579986,1.82587,2525.4,2525.1,4.69185954]
[1724898581089,0.3959,2525.3,2525.1,4.29593954]
[1724898581287,0.3959,2525.3,2525.1,3.94123954]
[1724898582182,1.82588,2525.4,2525.1,1.12935954]
[1724898586780,0.39589,2525.3,2525.1,1.12935954]
[1724898586985,0.39589,2525.3,2525.1,0.73343954]
[1724898587390,1.43,2525.4,2525.1,0.73343954]
[1724898587792,0.3959,2525.2,2525.1,0.73343954]
[1724898588186,0.3959,2525.2,2525.1,0.00593954]
[1724898588187,5.7859,2525.2,2525.1,0.00593954]
[1724898589790,1.8259,2525.2,2525.1,0.00593954]
[1724898593099,1.8259,2525.2,2525.1,0.35953954]
[1724898593596,0.3959,2525.2,2525.1,0.00593954]
[1724898593796,1.8259,2525.2,2525.1,0.00593954]
[1724898596597,5.7859,2525.2,2525.1,0.00593954]
[1724898596991,6.77567,2525.2,2525.1,0.00593954]
[1724898597995,12.77567,2525.2,2525.1,0.00593954]
[1724898598297,0.39601,2524.6,2524.4,3.2078]
[1724898598495,1.82601,2524.5,2524.4,3.5842]
[1724898598885,1.43,2524.5,2524.4,3.5842]
[1724898599506,1.43,2524.5,2524.4,0.3764]
[1724898600598,1.82601,2524.6,2524.4,0.3764]
[1724898601693,1.43,2524.6,2524.4,0.77243]
[1724898603403,1.826,2524.6,2524.4,3.98023]
[1724898603994,1.826,2524.6,2524.5,0.39601]
[1724898603995,1.43,2524.6,2524.5,0.39601]
[1724898604201,1.43,2525.0,2524.5,42.626]
[1724898604499,0.39597,2524.8,2524.6,0.7528]
[1724898604694,0.39597,2524.8,2524.6,1.1488]
[1724898605193,0.39597,2524.8,2524.6,0.7528]
[1724898605506,0.39598,2524.7,2524.6,0.7528]
[1724898605808,0.39597,2524.8,2524.6,0.7528]
[1724898606609,0.39598,2524.7,2524.6,0.7528]
[1724898607001,0.39598,2524.7,2524.6,0.3664]
[1724898607293,0.39598,2524.7,2524.5,40.8]
[1724898607294,0.396,2524.6,2524.5,40.8]
[1724898609596,1.82599,2524.7,2524.5,40.8]
[1724898611406,0.21198133,2525.0,2524.5,40.8]
[1724898611601,4.6378,2525.2,2524.8,0.39596]
[1724898611803,4.6378,2525.2,2524.5,42.23]
[1724898611804,1.82595,2525.0,2524.6,0.39599]
[1724898611995,1.82595,2525.0,2524.7,0.3774]
[1724898612194,1.82595,2525.0,2524.8,0.3738]
[1724898612406,1.82595,2525.0,2524.8,0.7607]
[1724898613004,0.39598,2524.7,2524.5,44.1253551]
[1724898613204,0.39598,2524.7,2524.5,44.8867551]
[1724898613505,1.43,2524.8,2524.5,44.8867551]
[1724898613506,1.826,2524.6,2524.5,3.7122551]
[1724898613702,1.826,2524.6,2524.5,0.3869]
[1724898615813,1.43,2524.6,2524.5,0.3869]
[1724898616003,1.826,2524.6,2524.5,0.3869]
[1724898618115,0.39601,2524.5,2524.4,0.3774]
[1724898618414,0.3741,2524.7,2524.4,0.3774]
[1724898618415,0.77009,2524.7,2524.4,0.3774]
[1724898618615,0.39598,2524.7,2524.4,0.77342]
[1724898618811,0.39598,2524.7,2524.4,0.77343]
[1724898623211,0.396,2524.6,2524.4,0.3774]
[1724898623812,0.39601,2524.5,2524.4,0.3774]
[1724898624018,0.39603,2524.4,2524.3,0.7396]
[1724898624815,1.82603,2524.4,2524.2,3.21373954]
[1724898625114,0.39605,2524.3,2524.2,3.21373954]
[1724898625321,1.82604,2524.4,2524.2,3.21373954]
[1724898625910,1.82604,2524.4,2524.3,0.7404]
[1724898626228,1.43,2524.4,2524.3,1.49845]
[1724898626519,0.39601,2524.5,2524.3,1.1024]
[1724898626818,1.43,2524.6,2524.3,1.1024]
[1724898627227,3.2078,2524.9,2524.3,5.064]
[1724898627416,0.39594,2525.0,2524.7,3.60377]
[1724898627720,0.39594,2525.0,2524.8,1.1045]
[1724898627911,1.43,2525.1,2524.8,1.1045]
[1724898627912,0.39595,2524.9,2524.8,1.1045]
[1724898628314,1.82595,2524.9,2524.8,1.1045]
[1724898629316,5.78675,2524.9,2524.8,0.3567]
[1724898629518,0.39601,2524.6,2524.4,4.3123]
[1724898629814,1.43,2524.5,2524.4,4.3123]
[1724898630923,1.82601,2524.5,2524.4,4.3123]
[1724898631320,1.82601,2524.5,2524.4,3.9235]
[1724898632012,0.39601,2524.5,2524.4,3.9235]
[1724898632722,0.39601,2524.5,2524.4,0.7157]
[1724898633022,0.39604,2524.4,2524.2,0.35783954]
[1724898633209,0.77844,2524.4,2524.2,0.35783954]
[1724898634616,0.39605,2524.3,2524.2,0.35783954]
[1724898634813,0.39605,2524.3,2524.2,0.00593954]
[1724898635110,4.3759238,2524.3,2524.2,0.00593954]
[1724898635513,4.37592664,2524.3,2524.2,0.00593954]
[1724898638323,7.58372664,2524.3,2524.2,0.00593954]
[1724898638718,8.57384664,2524.3,2524.2,0.00593954]
[1724898639628,8.57384664,2524.3,2523.6,3.3253551]
[1724898639629,0.39614,2523.7,2523.6,3.3253551]
[1724898639929,3.81614,2523.7,2523.6,0.3754]
[1724898640224,0.39617,2523.5,2523.4,0.7559]
[1724898640524,0.39617,2523.5,2522.5,3.7216751]
[1724898640525,0.39625,2523.1,2522.5,3.7216751]
[1724898640735,1.38671,2523.3,2523.2,9.66e-06]
[1724898640925,0.39631,2522.6,2522.4,3.5832]
[1724898641123,3.42,2522.6,2522.4,3.5832]
[1724898641822,0.39636,2522.4,2522.1,3.3253551]
[1724898642024,3.42,2522.3,2522.1,3.3253551]
[1724898642229,3.42,2522.3,2521.9,3.97]
[1724898642426,0.39638,2522.2,2521.9,3.97]